[Event "POL-chT 2 Liga 2019"]
[Site "Poronin"]
[Date "2019.09.11"]
[Round "5.34"]
[White "Szmyd, Marek"]
[Black "Galuszka, Tomasz"]
[Result "0-1"]
[ECO "A06"]
[WhiteElo "1885"]
[BlackElo "2222"]
[Annotator "NA"]
[PlyCount "78"]
[EventDate "2019.09.07"]
[EventType "team-tourn"]
[EventCountry "POL"]
[SourceTitle "playchess.com"]
[Source "ChessBase"]
[SourceQuality "1"]
[TimeControl "40/5400+30:1800+30"]

1. Nf3 {[%emt 0:00:00]} d5 {[%emt 0:00:00]} 2. b3 {[%emt 0:00:00]} Bf5 {[%emt 0:00:00]} 3. Bb2 {[%emt 0:00:02]} e6 {[%emt 0:00:00]} 4. e3 {[%emt 0:01:37]} Nf6 {[%emt 0:00:01]} 5. d4 {[%emt 0:04:03]} h6 {[%emt 0:01:31]} 6. Bd3 {[%emt 0:01:40]} Be4 {[%emt 0:04:32]} 7. Bxe4 {[%emt 0:03:07]} Nxe4 {[%emt 0:01:49]} 8. O-O {[%emt 0:00:58]} Be7 {[%emt 0:01:53]} 9. Nbd2 {[%emt 0:01:10]} Nxd2 {[%emt 0:03:44]} 10. Qxd2 {[%emt 0:01:43]} O-O {[%emt 0:00:30]} 11. Ne5 {[%emt 0:02:00]} Nd7 {[%emt 0:01:01]} 12. Nxd7 {[%emt 0:01:12]} Qxd7 {[%emt 0:00:03]} 13. c4 {[%emt 0:01:00]} c6 {[%emt 0:04:50]} 14. Qe2 {[%emt 0:09:06]} Rfe8 {[%emt 0:02:24]} 15. Rfd1 {[%emt 0:03:24]} Qc7 {[%emt 0:04:11]} 16. g3 {[%emt 0:04:56]} Rad8 {[%emt 0:00:55]} 17. a3 {[%emt 0:09:36]} Bf6 {[%emt 0:00:47]} 18. b4 {[%emt 0:11:04]} Qd7 {[%emt 0:02:46]} 19. a4 {[%emt 0:07:24]} a5 {[%emt 0:06:06]} 20. cxd5 {[%emt 0:08:33]} Qxd5 {[%emt 0:01:44]} 21. bxa5 {[%emt 0:06:02]} Qxa5 {[%emt 0:01:41]} 22. Rdc1 {[%emt 0:02:34]} Ra8 {[%emt 0:00:42]} 23. Bc3 {[%emt 0:03:05]} Qc7 {[%emt 0:01:24]} 24. Qb2 {[%emt 0:04:41]} Ra7 {[%emt 0:00:59]} 25. Rcb1 {[%emt 0:02:06]} Rea8 {[%emt 0:00:26]} 26. a5 {[%emt 0:01:17]} g6 {[%emt 0:04:04]} 27. Bb4 {[%emt 0:01:00]} Be7 {[%emt 0:00:59]} 28. Bxe7 {[%emt 0:01:22]} Qxe7 {[%emt 0:01:39]} 29. Qb6 {[%emt 0:01:45]} Qd7 {[%emt 0:04:44]} 30. Qc5 {[%emt 0:02:20]} Ra6 {[%emt 0:01:00]} 31. Rb6 {[%emt 0:00:50]} Rxb6 {[%emt 0:00:29]} 32. Qxb6 {[%emt 0:00:13]} Ra6 {[%emt 0:00:04]} 33. Qb2 {[%emt 0:01:06]} Qc7 {[%emt 0:01:12]} 34. Rb1 {[%emt 0:00:24]} Ra7 {[%emt 0:00:34]} 35. Qb4 {[%emt 0:01:31]} h5 {[%emt 0:00:35]} 36. h4 {[%emt 0:00:40]} Kg7 {[%emt 0:01:54]} 37. Kf1 {[%emt 0:02:12]} f6 {[%emt 0:02:47]} 38. Qc5 {[%emt 0:01:20]} Rxa5 {[%emt 0:00:37]} 39. Rxb7 {[%emt 0:00:15]} Ra1+ {[%emt 0:00:06]} 0-1

[Event "POL-chT 2 Liga 2019"]
[Site "Poronin"]
[Date "2019.09.11"]
[Round "5.35"]
[White "Koloczek, Maciej"]
[Black "Zminda, Bogdan"]
[Result "0-1"]
[ECO "B40"]
[WhiteElo "1932"]
[BlackElo "1970"]
[Annotator "NA"]
[PlyCount "56"]
[EventDate "2019.09.07"]
[EventType "team-tourn"]
[EventCountry "POL"]
[SourceTitle "playchess.com"]
[Source "ChessBase"]
[SourceQuality "1"]
[TimeControl "40/5400+30:1800+30"]

1. e4 {[%emt 0:00:00]} c5 {[%emt 0:00:00]} 2. Nf3 {[%emt 0:00:00]} e6 {[%emt 0:00:18]} 3. b3 {[%emt 0:00:00]} d5 {[%emt 0:00:22]} 4. exd5 {[%emt 0:00:08]} exd5 {[%emt 0:00:02]} 5. d4 {[%emt 0:00:10]} Nc6 {[%emt 0:00:09]} 6. Bb2 {[%emt 0:01:15]} Nf6 {[%emt 0:00:33]} 7. Be2 {[%emt 0:03:21]} cxd4 {[%emt 0:02:05]} 8. O-O {[%emt 0:02:27]} Bc5 {[%emt 0:00:17]} 9. Nxd4 {[%emt 0:03:29]} O-O {[%emt 0:01:49]} 10. a4 {[%emt 0:06:14]} Re8 {[%emt 0:02:17]} 11. Bf3 {[%emt 0:05:16]} Ne4 {[%emt 0:01:09]} 12. Na3 {[%emt 0:06:09]} Qb6 {[%emt 0:00:43]} 13. c3 {[%emt 0:00:58]} Bxd4 {[%emt 0:01:05]} 14. cxd4 {[%emt 0:00:19]} Na5 {[%emt 0:00:07]} 15. Nb5 {[%emt 0:11:36]} Bd7 {[%emt 0:04:42]} 16. Nc3 {[%emt 0:05:54]} Qxb3 {[%emt 0:01:13]} 17. Qxb3 {[%emt 0:11:17]} Nxb3 {[%emt 0:00:04]} 18. Ra3 {[%emt 0:00:42]} Nxd4 {[%emt 0:03:01]} 19. Nxd5 {[%emt 0:11:05]} Nxf3+ {[%emt 0:01:28]} 20. Rxf3 {[%emt 0:00:58]} Nd2 {[%emt 0:00:10]} 21. Nc7 {[%emt 0:00:22]} Nxf3+ {[%emt 0:02:13]} 22. gxf3 {[%emt 0:00:07]} Bxa4 {[%emt 0:00:23]} 23. Nxa8 {[%emt 0:00:44]} Rxa8 {[%emt 0:00:03]} 24. Ra1 {[%emt 0:00:20]} Bc6 {[%emt 0:00:08]} 25. Bd4 {[%emt 0:00:24]} a6 {[%emt 0:00:27]} 26. Kg2 {[%emt 0:01:02]} Rd8 {[%emt 0:00:28]} 27. Be3 {[%emt 0:00:24]} Rd6 {[%emt 0:01:29]} 28. Ra5 {[%emt 0:00:22]} Rf6 {[%emt 0:00:23]} 0-1

[Event "POL-chT 2 Liga 2019"]
[Site "Poronin"]
[Date "2019.09.11"]
[Round "5.36"]
[White "Czaplewska, Klara"]
[Black "Adamczyk, Zuzanna"]
[Result "1/2-1/2"]
[ECO "A45"]
[WhiteElo "1870"]
[BlackElo "1938"]
[Annotator "NA"]
[PlyCount "54"]
[EventDate "2019.09.07"]
[EventType "team-tourn"]
[EventCountry "POL"]
[SourceTitle "playchess.com"]
[Source "ChessBase"]
[SourceQuality "1"]
[TimeControl "40/5400+30:1800+30"]

1. d4 {[%emt 0:00:00]} Nf6 {[%emt 0:00:00]} 2. g3 {[%emt 0:00:00]} d5 {[%emt 0:00:19]} 3. Bg2 {[%emt 0:00:00]} Bf5 {[%emt 0:00:44]} 4. Nf3 {[%emt 0:00:21]} e6 {[%emt 0:01:31]} 5. O-O {[%emt 0:00:08]} h6 {[%emt 0:00:36]} 6. c4 {[%emt 0:01:21]} c6 {[%emt 0:02:20]} 7. Nc3 {[%emt 0:01:04]} Be7 {[%emt 0:07:08]} 8. b3 {[%emt 0:01:25]} Nbd7 {[%emt 0:04:43]} 9. Bb2 {[%emt 0:00:18]} O-O {[%emt 0:05:02]} 10. Rc1 {[%emt 0:08:25]} Ne4 {[%emt 0:03:11]} 11. Nd2 {[%emt 0:02:02]} Nxd2 {[%emt 0:06:29]} 12. Qxd2 {[%emt 0:00:07]} Nf6 {[%emt 0:04:25]} 13. f3 {[%emt 0:05:33]} Bh7 {[%emt 0:12:23]} 14. e4 {[%emt 0:01:13]} dxe4 {[%emt 0:01:27]} 15. fxe4 {[%emt 0:00:57]} Ng4 {[%emt 0:03:17]} 16. Rce1 {[%emt 0:06:25]} Bg5 {[%emt 0:08:22]} 17. Qd3 {[%emt 0:00:48]} Bf6 {[%emt 0:04:53]} 18. Ne2 {[%emt 0:01:42]} c5 {[%emt 0:02:32]} 19. Qf3 {[%emt 0:00:49]} h5 {[%emt 0:03:49]} 20. h3 {[%emt 0:04:17]} Nh6 {[%emt 0:00:41]} 21. e5 {[%emt 0:12:21]} Bg5 {[%emt 0:01:53]} 22. h4 {[%emt 0:06:26]} Bd2 {[%emt 0:02:00]} 23. Rd1 {[%emt 0:00:18]} Qa5 {[%emt 0:03:18]} 24. Nc3 {[%emt 0:20:56]} Bxc3 {[%emt 0:03:36]} 25. Qxc3 {[%emt 0:01:00]} Qxc3 {[%emt 0:02:08]} 26. Bxc3 {[%emt 0:00:02]} Nf5 {[%emt 0:01:02]} 27. Kf2 {[%emt 0:01:35]} f6 {[%emt 0:03:57]} 1/2-1/2

[Event "POL-chT 2 Liga 2019"]
[Site "Poronin"]
[Date "2019.09.11"]
[Round "5.37"]
[White "Goluch, Piotr"]
[Black "Kumala, Aleksander"]
[Result "1-0"]
[ECO "E15"]
[WhiteElo "2428"]
[BlackElo "2203"]
[Annotator "NA"]
[PlyCount "75"]
[EventDate "2019.09.07"]
[EventType "team-tourn"]
[EventCountry "POL"]
[SourceTitle "playchess.com"]
[Source "ChessBase"]
[SourceQuality "1"]
[TimeControl "40/5400+30:1800+30"]

1. d4 {[%emt 0:00:00]} e6 {[%emt 0:00:00]} 2. Nf3 {[%emt 0:00:00]} Nf6 {[%emt 0:00:00]} 3. c4 {[%emt 0:00:00]} b6 {[%emt 0:00:00]} 4. g3 {[%emt 0:00:26]} Ba6 {[%emt 0:00:00]} 5. Qc2 {[%emt 0:01:04]} Bb7 {[%emt 0:00:00]} 6. Bg2 c5 {[%emt 0:02:43]} 7. O-O {[%emt 0:01:05]} cxd4 {[%emt 0:08:35]} 8. Nxd4 {[%emt 0:00:57]} Bxg2 {[%emt 0:00:24]} 9. Kxg2 {[%emt 0:00:04]} Bc5 {[%emt 0:02:19]} 10. Rd1 {[%emt 0:03:38]} O-O {[%emt 0:00:59]} 11. Nc3 {[%emt 0:04:18]} Qc8 {[%emt 0:17:29]} 12. Bg5 {[%emt 0:03:48]} Be7 {[%emt 0:00:33]} 13. Ne4 {[%emt 0:03:48]} Qb7 {[%emt 0:09:58]} 14. f3 {[%emt 0:00:05]} Ng4 {[%emt 0:00:04]} 15. h3 {[%emt 0:07:28]} Bxg5 {[%emt 0:03:54]} 16. hxg4 {[%emt 0:00:04]} Be7 {[%emt 0:01:51]} 17. Rh1 {[%emt 0:01:00]} g6 {[%emt 0:11:51]} 18. Qd2 {[%emt 0:06:05]} f5 {[%emt 0:00:22]} 19. gxf5 {[%emt 0:00:03]} exf5 {[%emt 0:00:21]} 20. Nc3 {[%emt 0:10:24]} Rf7 {[%emt 0:03:02]} 21. Ndb5 {[%emt 0:03:30]} Nc6 {[%emt 0:02:19]} 22. Nd5 {[%emt 0:00:13]} Bf8 {[%emt 0:01:06]} 23. Qg5 {[%emt 0:03:21]} Re8 {[%emt 0:03:03]} 24. Rae1 {[%emt 0:05:19]} Re6 {[%emt 0:02:10]} 25. Nf4 {[%emt 0:04:23]} h6 {[%emt 0:01:09]} 26. Rxh6 {[%emt 0:00:12]} Bxh6 {[%emt 0:00:13]} 27. Qxh6 {[%emt 0:00:03]} Rh7 {[%emt 0:04:30]} 28. Qg5 {[%emt 0:00:07]} Ne7 {[%emt 0:01:57]} 29. Nxe6 {[%emt 0:00:41]} dxe6 {[%emt 0:00:03]} 30. Rd1 {[%emt 0:00:40]} Qc8 {[%emt 0:02:24]} 31. Qf6 {[%emt 0:00:16]} f4 {[%emt 0:01:59]} 32. Nxa7 {[%emt 0:04:04]} Qb8 {[%emt 0:00:47]} 33. Qxe6+ {[%emt 0:00:04]} Kf8 {[%emt 0:00:57]} 34. Qf6+ {[%emt 0:00:33]} Kg8 {[%emt 0:00:49]} 35. Nc6 {[%emt 0:03:39]} Nxc6 {[%emt 0:00:32]} 36. Qxc6 {[%emt 0:00:03]} fxg3 {[%emt 0:00:18]} 37. Qxg6+ {[%emt 0:00:10]} Kh8 {[%emt 0:00:21]} 38. Qf6+ {[%emt 0:00:04]} 1-0

[Event "POL-chT 2 Liga 2019"]
[Site "Poronin"]
[Date "2019.09.11"]
[Round "5.38"]
[White "Kasperek, Ryszard"]
[Black "Lukasiewicz, Krzysztof"]
[Result "0-1"]
[ECO "B90"]
[WhiteElo "2213"]
[BlackElo "2254"]
[Annotator "NA"]
[PlyCount "53"]
[EventDate "2019.09.07"]
[EventType "team-tourn"]
[EventCountry "POL"]
[SourceTitle "playchess.com"]
[Source "ChessBase"]
[SourceQuality "1"]
[TimeControl "40/5400+30:1800+30"]

1. e4 {[%emt 0:00:00]} c5 {[%emt 0:00:00]} 2. Nf3 {[%emt 0:00:00]} d6 {[%emt 0:00:00]} 3. d4 {[%emt 0:02:16]} cxd4 {[%emt 0:00:00]} 4. Nxd4 {[%emt 0:00:04]} Nf6 {[%emt 0:00:03]} 5. Nc3 {[%emt 0:00:07]} a6 {[%emt 0:00:04]} 6. h3 {[%emt 0:00:39]} e6 {[%emt 0:00:09]} 7. g4 {[%emt 0:00:16]} h6 {[%emt 0:00:04]} 8. Bg2 {[%emt 0:01:16]} Be7 {[%emt 0:00:07]} 9. Be3 {[%emt 0:06:51]} Nc6 {[%emt 0:01:02]} 10. Qe2 {[%emt 0:05:31]} Nxd4 {[%emt 0:01:40]} 11. Bxd4 {[%emt 0:00:29]} e5 {[%emt 0:00:06]} 12. Be3 {[%emt 0:00:03]} Be6 {[%emt 0:00:27]} 13. O-O-O {[%emt 0:11:09]} Rc8 {[%emt 0:02:48]} 14. Nd5 {[%emt 0:02:43]} Bxd5 {[%emt 0:01:27]} 15. exd5 {[%emt 0:00:33]} Nd7 {[%emt 0:00:10]} 16. Kb1 {[%emt 0:04:22]} O-O {[%emt 0:04:10]} 17. Be4 {[%emt 0:13:30]} Bh4 {[%emt 0:29:38]} 18. Rhg1 {[%emt 0:17:00]} Qf6 {[%emt 0:08:09]} 19. c4 {[%emt 0:15:10]} Rc7 {[%emt 0:09:21]} 20. Rc1 {[%emt 0:06:04]} Bg5 {[%emt 0:03:50]} 21. h4 {[%emt 0:05:28]} Bxh4 {[%emt 0:03:03]} 22. g5 {[%emt 0:01:49]} hxg5 {[%emt 0:01:49]} 23. Rg4 {[%emt 0:04:29]} Qe7 {[%emt 0:06:38]} 24. Bf5 {[%emt 0:01:13]} g6 {[%emt 0:01:49]} 25. Bxd7 {[%emt 0:00:41]} Qxd7 {[%emt 0:00:20]} 26. Bxg5 {[%emt 0:00:14]} Qe7 27. Be3 0-1

[Event "POL-chT 2 Liga 2019"]
[Site "Poronin"]
[Date "2019.09.11"]
[Round "5.39"]
[White "Jankowiak, Tomasz"]
[Black "Cajbel, Maciej"]
[Result "1-0"]
[ECO "B38"]
[WhiteElo "2075"]
[BlackElo "2199"]
[Annotator "NA"]
[PlyCount "121"]
[EventDate "2019.09.07"]
[EventType "team-tourn"]
[EventCountry "POL"]
[SourceTitle "playchess.com"]
[Source "ChessBase"]
[SourceQuality "1"]
[TimeControl "40/5400+30:1800+30"]

1. e4 {[%emt 0:00:00]} c5 {[%emt 0:00:44]} 2. Nf3 {[%emt 0:00:00]} Nc6 {[%emt 0:00:13]} 3. d4 {[%emt 0:00:00]} cxd4 {[%emt 0:00:04]} 4. Nxd4 {[%emt 0:00:00]} g6 {[%emt 0:00:15]} 5. c4 {[%emt 0:00:04]} Bg7 {[%emt 0:00:03]} 6. Be3 {[%emt 0:00:05]} Nf6 {[%emt 0:00:03]} 7. Nc3 {[%emt 0:00:07]} O-O {[%emt 0:00:09]} 8. Be2 {[%emt 0:00:17]} d6 {[%emt 0:00:04]} 9. f3 {[%emt 0:00:21]} Nxd4 {[%emt 0:00:28]} 10. Bxd4 {[%emt 0:00:16]} Be6 {[%emt 0:00:06]} 11. Qd2 {[%emt 0:11:50]} Qa5 {[%emt 0:00:10]} 12. Rd1 {[%emt 0:28:46]} Rfc8 {[%emt 0:03:06]} 13. Nd5 {[%emt 0:04:24]} Qxd2+ {[%emt 0:08:18]} 14. Rxd2 {[%emt 0:00:11]} Nxd5 {[%emt 0:18:13]} 15. exd5 {[%emt 0:00:35]} Bd7 {[%emt 0:00:52]} 16. Bxg7 {[%emt 0:04:13]} Kxg7 {[%emt 0:00:25]} 17. Rd4 {[%emt 0:00:20]} Rab8 {[%emt 0:02:45]} 18. Kd2 {[%emt 0:05:48]} b5 {[%emt 0:08:35]} 19. b3 {[%emt 0:00:30]} bxc4 {[%emt 0:15:12]} 20. Bxc4 {[%emt 0:00:42]} Bb5 {[%emt 0:02:08]} 21. Bxb5 {[%emt 0:16:09]} Rxb5 {[%emt 0:00:49]} 22. Rc1 {[%emt 0:00:24]} Rxc1 {[%emt 0:05:19]} 23. Kxc1 {[%emt 0:00:04]} Kf6 {[%emt 0:00:34]} 24. f4 {[%emt 0:04:13]} e5 {[%emt 0:08:59]} 25. dxe6 {[%emt 0:00:44]} Kxe6 {[%emt 0:00:04]} 26. Kd2 {[%emt 0:01:15]} d5 {[%emt 0:02:09]} 27. b4 {[%emt 0:02:30]} Rb7 {[%emt 0:10:54]} 28. Kc3 {[%emt 0:00:56]} Kd6 {[%emt 0:02:53]} 29. Kb3 {[%emt 0:04:13]} Re7 {[%emt 0:02:34]} 30. Rd2 {[%emt 0:01:31]} Re4 {[%emt 0:01:18]} 31. g3 {[%emt 0:00:10]} h5 {[%emt 0:01:19]} 32. Rc2 {[%emt 0:06:53]} h4 {[%emt 0:01:16]} 33. b5 {[%emt 0:01:03]} Re3+ {[%emt 0:03:45]} 34. Kb4 {[%emt 0:00:14]} Re4+ {[%emt 0:01:03]} 35. Kb3 {[%emt 0:03:38]} Re3+ {[%emt 0:00:09]} 36. Kb4 {[%emt 0:00:04]} Re4+ {[%emt 0:00:08]} 37. Ka5 {[%emt 0:04:56]} d4 {[%emt 0:00:28]} 38. Rc8 {[%emt 0:00:47]} Re2 {[%emt 0:01:20]} 39. a4 {[%emt 0:00:21]} Kd5 {[%emt 0:01:57]} 40. Ka6 {[%emt 0:00:00]} Re7 {[%emt 0:00:00]} 41. a5 {[%emt 0:09:06]} hxg3 {[%emt 0:12:30]} 42. hxg3 {[%emt 0:00:23]} d3 {[%emt 0:03:55]} 43. b6 {[%emt 0:02:04]} axb6 {[%emt 0:00:34]} 44. axb6 {[%emt 0:00:09]} Ke4 {[%emt 0:07:52]} 45. Rd8 {[%emt 0:01:58]} Ke3 {[%emt 0:00:55]} 46. b7 {[%emt 0:00:44]} Rxb7 {[%emt 0:00:03]} 47. Kxb7 {[%emt 0:00:06]} d2 {[%emt 0:00:06]} 48. Kc6 {[%emt 0:01:33]} Ke2 {[%emt 0:00:05]} 49. g4 {[%emt 0:01:39]} d1=Q 50. Rxd1 {[%emt 0:00:06]} Kxd1 {[%emt 0:02:35]} 51. f5 {[%emt 0:00:40]} Ke2 {[%emt 0:00:36]} 52. f6 {[%emt 0:00:22]} Kf3 {[%emt 0:00:12]} 53. Kd6 {[%emt 0:00:06]} Kxg4 {[%emt 0:00:46]} 54. Ke7 {[%emt 0:00:05]} g5 {[%emt 0:00:51]} 55. Kxf7 {[%emt 0:00:05]} Kh3 {[%emt 0:00:09]} 56. Ke6 {[%emt 0:00:18]} g4 {[%emt 0:00:03]} 57. f7 {[%emt 0:00:05]} g3 {[%emt 0:00:02]} 58. f8=Q {[%emt 0:00:08]} g2 {[%emt 0:00:03]} 59. Qf2 {[%emt 0:00:18]} Kh2 {[%emt 0:00:05]} 60. Qh4+ {[%emt 0:00:02]} Kg1 {[%emt 0:00:04]} 61. Ke5 {[%emt 0:00:06]} 1-0

[Event "POL-chT 2 Liga 2019"]
[Site "Poronin"]
[Date "2019.09.11"]
[Round "5.40"]
[White "Puczylowski, Marcin"]
[Black "Dryja, Szymon"]
[Result "1-0"]
[ECO "A45"]
[WhiteElo "2115"]
[BlackElo "1854"]
[Annotator "NA"]
[PlyCount "75"]
[EventDate "2019.09.07"]
[EventType "team-tourn"]
[EventCountry "POL"]
[SourceTitle "playchess.com"]
[Source "ChessBase"]
[SourceQuality "1"]
[TimeControl "40/5400+30:1800+30"]

1. d4 {[%emt 0:00:00]} Nf6 {[%emt 0:00:15]} 2. Bg5 {[%emt 0:00:00]} d5 {[%emt 0:04:04]} 3. e3 {[%emt 0:03:59]} Bf5 {[%emt 0:07:45]} 4. c4 {[%emt 0:06:42]} e6 {[%emt 0:00:23]} 5. Qb3 {[%emt 0:02:31]} Nc6 {[%emt 0:09:30]} 6. Nd2 {[%emt 0:15:50]} Be7 {[%emt 0:04:31]} 7. Bxf6 {[%emt 0:02:05]} gxf6 {[%emt 0:01:36]} 8. cxd5 {[%emt 0:01:55]} exd5 {[%emt 0:04:24]} 9. a3 {[%emt 0:04:43]} O-O {[%emt 0:03:01]} 10. Ne2 {[%emt 0:04:49]} Na5 {[%emt 0:09:30]} 11. Qc3 {[%emt 0:00:46]} b6 {[%emt 0:01:24]} 12. Ng3 {[%emt 0:04:25]} Bg6 {[%emt 0:02:32]} 13. h4 {[%emt 0:02:22]} h5 {[%emt 0:17:01]} 14. Be2 {[%emt 0:13:52]} c5 {[%emt 0:04:56]} 15. Bxh5 {[%emt 0:04:26]} Bd6 {[%emt 0:00:37]} 16. Bxg6 {[%emt 0:04:14]} fxg6 {[%emt 0:01:19]} 17. h5 {[%emt 0:07:57]} Bxg3 {[%emt 0:01:50]} 18. fxg3 {[%emt 0:00:12]} g5 {[%emt 0:04:35]} 19. O-O {[%emt 0:02:39]} Rc8 {[%emt 0:00:49]} 20. dxc5 {[%emt 0:00:59]} bxc5 {[%emt 0:02:05]} 21. Qd3 {[%emt 0:00:54]} Rc7 {[%emt 0:00:59]} 22. Rf5 {[%emt 0:04:26]} Rd7 {[%emt 0:00:48]} 23. Raf1 {[%emt 0:01:12]} Nc6 {[%emt 0:00:13]} 24. Qc3 {[%emt 0:01:30]} Ne5 {[%emt 0:04:08]} 25. Qxc5 {[%emt 0:00:49]} d4 {[%emt 0:03:17]} 26. Ne4 {[%emt 0:01:33]} Ng4 {[%emt 0:00:28]} 27. exd4 {[%emt 0:01:44]} Rxd4 {[%emt 0:01:05]} 28. Rxg5+ {[%emt 0:03:23]} fxg5 {[%emt 0:02:16]} 29. Rxf8+ {[%emt 0:00:30]} Qxf8 {[%emt 0:00:09]} 30. Qxd4 {[%emt 0:00:03]} Qe7 {[%emt 0:02:15]} 31. Qd5+ {[%emt 0:01:06]} Kh8 {[%emt 0:00:32]} 32. h6 {[%emt 0:00:48]} Qc7 {[%emt 0:02:56]} 33. Qd4+ {[%emt 0:00:18]} Ne5 {[%emt 0:00:29]} 34. Kh2 {[%emt 0:01:51]} Qe7 {[%emt 0:00:34]} 35. Nf2 {[%emt 0:00:49]} Kh7 {[%emt 0:00:58]} 36. Qe4+ {[%emt 0:00:13]} Kxh6 {[%emt 0:00:05]} 37. Qxe5 {[%emt 0:00:28]} Qf7 {[%emt 0:02:00]} 38. Nh3 {[%emt 0:00:18]} 1-0

[Event "POL-chT 2 Liga 2019"]
[Site "Poronin"]
[Date "2019.09.11"]
[Round "5.41"]
[White "Statucki, Maciej"]
[Black "Zurkowski, Andrzej"]
[Result "1/2-1/2"]
[ECO "B01"]
[WhiteElo "1754"]
[BlackElo "2029"]
[Annotator "NA"]
[PlyCount "23"]
[EventDate "2019.09.07"]
[EventType "team-tourn"]
[EventCountry "POL"]
[SourceTitle "playchess.com"]
[Source "ChessBase"]
[SourceQuality "1"]
[TimeControl "40/5400+30:1800+30"]

1. e4 {[%emt 0:00:00]} d5 {[%emt 0:00:00]} 2. exd5 {[%emt 0:00:00]} Nf6 {[%emt 0:00:06]} 3. Nc3 {[%emt 0:02:13]} Nxd5 {[%emt 0:00:11]} 4. Bc4 {[%emt 0:01:50]} Nxc3 {[%emt 0:02:19]} 5. Qf3 {[%emt 0:04:52]} e6 {[%emt 0:02:20]} 6. dxc3 {[%emt 0:00:44]} Qf6 {[%emt 0:03:41]} 7. Bf4 {[%emt 0:07:43]} Bd6 {[%emt 0:03:50]} 8. Bb5+ {[%emt 0:08:17]} Ke7 {[%emt 0:03:38]} 9. Ne2 {[%emt 0:06:36]} Bxf4 {[%emt 0:04:00]} 10. Qxf4 {[%emt 0:07:05]} Qxf4 {[%emt 0:01:58]} 11. Nxf4 {[%emt 0:00:03]} Bd7 {[%emt 0:03:23]} 12. Bxd7 {[%emt 0:00:47]} 1/2-1/2

[Event "POL-chT 2 Liga 2019"]
[Site "Poronin"]
[Date "2019.09.11"]
[Round "5.42"]
[White "Kasperek, Joanna"]
[Black "Czarniecka, Aleksandra"]
[Result "1-0"]
[ECO "B50"]
[WhiteElo "2045"]
[BlackElo "2003"]
[Annotator "NA"]
[PlyCount "87"]
[EventDate "2019.09.07"]
[EventType "team-tourn"]
[EventCountry "POL"]
[SourceTitle "playchess.com"]
[Source "ChessBase"]
[SourceQuality "1"]
[TimeControl "40/5400+30:1800+30"]

1. e4 {[%emt 0:00:00]} c5 {[%emt 0:00:00]} 2. Nf3 {[%emt 0:00:01]} d6 {[%emt 0:00:00]} 3. d4 {[%emt 0:00:21]} Nf6 {[%emt 0:00:02]} 4. Nc3 {[%emt 0:01:23]} cxd4 {[%emt 0:00:08]} 5. Qxd4 {[%emt 0:00:24]} a6 {[%emt 0:00:09]} 6. Be3 {[%emt 0:03:28]} Nc6 {[%emt 0:00:11]} 7. Qb6 {[%emt 0:00:21]} Qxb6 {[%emt 0:06:05]} 8. Bxb6 {[%emt 0:00:07]} g6 {[%emt 0:02:37]} 9. O-O-O {[%emt 0:05:55]} Bh6+ {[%emt 0:04:00]} 10. Kb1 {[%emt 0:00:45]} Bg4 {[%emt 0:07:57]} 11. h3 {[%emt 0:12:03]} Bxf3 {[%emt 0:03:47]} 12. gxf3 {[%emt 0:00:04]} Ne5 {[%emt 0:02:04]} 13. Be2 {[%emt 0:04:26]} Nh5 {[%emt 0:06:26]} 14. Nd5 {[%emt 0:05:42]} Rc8 {[%emt 0:02:33]} 15. Bd4 {[%emt 0:05:46]} Bf4 {[%emt 0:06:45]} 16. h4 {[%emt 0:09:36]} e6 {[%emt 0:05:26]} 17. Nxf4 {[%emt 0:07:07]} Nxf4 {[%emt 0:00:08]} 18. Bf1 {[%emt 0:00:31]} Nh5 {[%emt 0:04:14]} 19. Be3 {[%emt 0:04:43]} Ke7 {[%emt 0:01:44]} 20. Be2 {[%emt 0:04:59]} Nc4 {[%emt 0:08:27]} 21. Bxc4 {[%emt 0:13:30]} Rxc4 {[%emt 0:00:09]} 22. b3 {[%emt 0:00:04]} Rc6 {[%emt 0:02:19]} 23. c4 {[%emt 0:00:49]} e5 {[%emt 0:06:51]} 24. Rd3 {[%emt 0:06:40]} f5 {[%emt 0:09:07]} 25. Rhd1 {[%emt 0:02:08]} Nf6 {[%emt 0:08:14]} 26. Bg5 {[%emt 0:01:08]} Rd8 {[%emt 0:00:28]} 27. Rd5 {[%emt 0:02:53]} b6 {[%emt 0:01:19]} 28. f4 {[%emt 0:02:19]} Rf8 {[%emt 0:02:32]} 29. fxe5 {[%emt 0:01:03]} dxe5 {[%emt 0:00:04]} 30. exf5 {[%emt 0:01:01]} Kf7 {[%emt 0:03:34]} 31. Rxe5 {[%emt 0:00:46]} gxf5 {[%emt 0:00:42]} 32. Rxf5 {[%emt 0:01:02]} Kg6 {[%emt 0:00:05]} 33. Rxf6+ {[%emt 0:02:37]} Rfxf6 {[%emt 0:00:09]} 34. Bxf6 {[%emt 0:00:03]} Rxf6 {[%emt 0:00:05]} 35. b4 {[%emt 0:01:11]} Kh5 {[%emt 0:01:34]} 36. Kb2 {[%emt 0:01:41]} Rxf2+ {[%emt 0:00:08]} 37. Kb3 {[%emt 0:00:04]} Rf3+ {[%emt 0:05:06]} 38. Ka4 {[%emt 0:00:10]} a5 {[%emt 0:00:58]} 39. bxa5 {[%emt 0:01:12]} bxa5 {[%emt 0:00:12]} 40. Rc1 {[%emt 0:00:00]} Kxh4 {[%emt 0:00:00]} 41. c5 {[%emt 0:03:15]} Rf8 {[%emt 0:03:43]} 42. c6 {[%emt 0:00:34]} h5 {[%emt 0:00:05]} 43. c7 {[%emt 0:00:11]} Rc8 {[%emt 0:00:05]} 44. Kxa5 {[%emt 0:00:09]} 1-0

[Event "POL-chT 2 Liga 2019"]
[Site "Poronin"]
[Date "2019.09.11"]
[Round "5.43"]
[White "Brozyna, Mateusz"]
[Black "Helis, Tadeusz"]
[Result "1/2-1/2"]
[ECO "B32"]
[WhiteElo "2194"]
[BlackElo "2166"]
[Annotator "NA"]
[PlyCount "28"]
[EventDate "2019.09.07"]
[EventType "team-tourn"]
[EventCountry "POL"]
[SourceTitle "playchess.com"]
[Source "ChessBase"]
[SourceQuality "1"]
[TimeControl "40/5400+30:1800+30"]

1. e4 {[%emt 0:00:00]} c5 {[%emt 0:00:00]} 2. Nf3 {[%emt 0:00:00]} Nc6 {[%emt 0:00:00]} 3. d4 {[%emt 0:00:00]} cxd4 {[%emt 0:00:00]} 4. Nxd4 {[%emt 0:00:00]} Qb6 {[%emt 0:00:00]} 5. Nb3 {[%emt 0:00:56]} Nf6 {[%emt 0:00:03]} 6. Bd3 {[%emt 0:00:51]} d6 {[%emt 0:03:23]} 7. O-O {[%emt 0:02:05]} a6 {[%emt 0:00:31]} 8. Nc3 {[%emt 0:07:21]} e6 {[%emt 0:00:26]} 9. Be3 {[%emt 0:00:53]} Qc7 {[%emt 0:00:04]} 10. f4 {[%emt 0:01:10]} Be7 {[%emt 0:00:24]} 11. a3 {[%emt 0:03:20]} b5 {[%emt 0:05:49]} 12. Kh1 {[%emt 0:03:52]} Bb7 {[%emt 0:00:58]} 13. f5 {[%emt 0:03:00]} e5 {[%emt 0:07:23]} 14. Bg5 {[%emt 0:02:51]} Na5 1/2-1/2